bitfinex/quotes_BTCUSD_20240617
["timestamp","ask_amount","ask_price","bid_price","bid_amount"]
[1718624106328,1.53932823,65853.0,65852.0,0.00085]
[1718624106526,1.53832823,65853.0,65852.0,0.00085]
[1718624106699,1.54132823,65853.0,65852.0,0.00085]
[1718624106905,1.54132823,65853.0,65852.0,0.00385]
[1718624107116,1.53132823,65853.0,65852.0,0.00385]
[1718624107340,1.54132823,65853.0,65852.0,0.00385]
[1718624109145,1.60435953,65853.0,65852.0,0.00385]
[1718624109325,1.54132823,65853.0,65852.0,0.00385]
[1718624109526,1.53132823,65853.0,65852.0,0.00385]
[1718624109946,0.84787234,65853.0,65852.0,0.00385]
[1718624110374,1.15157834,65853.0,65852.0,0.00385]
[1718624110821,1.45528434,65853.0,65852.0,0.00385]
[1718624111661,1.46528434,65853.0,65852.0,0.00385]
[1718624111862,1.76899034,65853.0,65852.0,0.00385]
[1718624112018,1.75899034,65853.0,65852.0,0.00385]
[1718624112443,1.76899034,65853.0,65852.0,0.00385]
[1718624112641,1.83202264,65853.0,65852.0,0.00385]
[1718624113855,1.51831664,65853.0,65852.0,0.00385]
[1718624114682,1.52831664,65853.0,65852.0,0.00385]
[1718624115537,1.83202289,65853.0,65852.0,0.00385]
[1718624115753,1.98411068,65853.0,65852.0,0.00385]
[1718624118406,1.97411068,65853.0,65852.0,0.00385]
[1718624118580,1.98411068,65853.0,65852.0,0.00385]
[1718624120381,1.91101068,65853.0,65852.0,0.00385]
[1718624120588,1.98411068,65853.0,65852.0,0.00385]
[1718624123205,2.05442727,65853.0,65852.0,0.00385]
[1718624125201,2.15384645,65853.0,65852.0,0.00385]
[1718624125611,2.25384645,65853.0,65852.0,0.00385]
[1718624125879,3.06334624,65853.0,65852.0,0.00385]
[1718624126095,2.80964024,65853.0,65852.0,0.00385]
[1718624126239,2.80964024,65853.0,65849.0,0.00085]
[1718624126240,1.84333553,65850.0,65849.0,0.00085]
[1718624126419,2.51221589,65850.0,65849.0,0.00085]
[1718624126621,2.61221589,65850.0,65849.0,0.00085]
[1718624126818,2.76430368,65850.0,65849.0,0.00085]
[1718624127085,2.61221589,65850.0,65849.0,0.00085]
[1718624127436,2.61336799,65850.0,65849.0,0.00085]
[1718624128096,2.61337979,65850.0,65849.0,0.00085]
[1718624128765,2.63715146,65850.0,65849.0,0.00085]
[1718624128901,2.56626359,65850.0,65849.0,0.00085]
[1718624129107,2.78929081,65850.0,65849.0,0.00085]
[1718624129313,2.80329081,65850.0,65849.0,0.00185]
[1718624129911,2.80329094,65850.0,65849.0,0.00185]
[1718624130662,2.66420315,65850.0,65849.0,0.00185]
[1718624131737,2.66609014,65850.0,65849.0,0.00185]
[1718624132309,2.60304566,65850.0,65849.0,0.00185]
[1718624132508,2.6660902,65850.0,65849.0,0.00185]
[1718624135664,2.9698102,65850.0,65849.0,0.00185]
[1718624135868,3.12189799,65850.0,65849.0,0.00185]
[1718624137265,3.12170203,65850.0,65849.0,0.00185]
[1718624140269,3.1669056,65850.0,65849.0,0.00185]
[1718624141375,3.18950739,65850.0,65849.0,0.00185]
[1718624142206,3.23950739,65850.0,65849.0,0.00185]
[1718624142864,3.23982189,65850.0,65849.0,0.00185]
[1718624144148,3.171907,65850.0,65849.0,0.00185]
[1718624144339,3.23982168,65850.0,65849.0,0.00185]
[1718624144481,3.08773389,65850.0,65849.0,0.00185]
[1718624145237,3.08773258,65850.0,65849.0,0.00185]
[1718624145474,2.94887077,65850.0,65849.0,0.00185]
[1718624145677,3.08746568,65850.0,65849.0,0.00185]
[1718624146378,3.01955128,65850.0,65849.0,0.00185]
[1718624146760,3.17163907,65850.0,65849.0,0.00185]
[1718624148293,3.26219161,65850.0,65849.0,0.00185]
[1718624149446,1.770713,65840.0,65839.0,0.00853]
[1718624149662,2.00610418,65840.0,65839.0,0.00853]
[1718624149880,1.79010418,65840.0,65839.0,0.07273]
[1718624150088,1.86320418,65840.0,65839.0,0.07273]
[1718624150291,1.86320418,65840.0,65839.0,0.00853]
[1718624150694,1.86920418,65840.0,65839.0,0.00953]
[1718624150943,1.55543818,65840.0,65839.0,0.00953]
[1718624151184,1.56905282,65840.0,65839.0,0.14823]
[1718624151553,1.87281882,65840.0,65839.0,0.00953]
[1718624152261,2.17658482,65840.0,65839.0,0.00953]
[1718624152466,1.87281882,65840.0,65839.0,0.00953]
[1718624153234,1.53767553,65824.0,65823.0,0.5653]
[1718624153452,1.84283715,65824.0,65823.0,0.5]
[1718624153670,1.94283715,65824.0,65823.0,0.5]
[1718624154294,2.75260494,65824.0,65823.0,0.5]
[1718624154508,2.64505728,65824.0,65823.0,0.5]
[1718624154835,2.78755728,65824.0,65823.0,0.5]
[1718624155041,2.80155728,65824.0,65823.0,0.5]
[1718624155449,2.75626494,65824.0,65823.0,0.5]
[1718624155659,2.75726494,65824.0,65823.0,0.5]
[1718624156224,2.65626494,65824.0,65823.0,0.5]
[1718624156422,2.56916494,65824.0,65823.0,0.5]
[1718624156627,2.65626494,65824.0,65823.0,0.5]
[1718624156809,2.92147924,65824.0,65823.0,0.5]
[1718624158090,2.77026494,65824.0,65823.0,0.5]
[1718624158292,2.09982494,65824.0,65823.0,0.5]
[1718624158474,2.12292494,65824.0,65823.0,0.5]
[1718624158683,2.02083715,65824.0,65823.0,0.5]
[1718624160796,1.94773715,65824.0,65823.0,0.5]
[1718624161001,2.02083715,65824.0,65823.0,0.5]
[1718624161248,2.32292494,65824.0,65823.0,0.5]
[1718624161451,2.32292494,65824.0,65808.0,0.00854]
[1718624161452,1.24407653,65809.0,65808.0,0.00854]
[1718624161698,1.54798553,65809.0,65808.0,0.00854]
[1718624161897,1.69662276,65809.0,65808.0,0.00854]
[1718624162284,1.30961376,65809.0,65808.0,0.00854]
[1718624162499,1.00570476,65809.0,65808.0,0.09004]
[1718624162692,1.01576022,65809.0,65808.0,0.15164]
[1718624163185,1.31966922,65809.0,65808.0,0.15164]
[1718624163404,1.32766922,65809.0,65808.0,0.15164]
[1718624163614,1.31966922,65809.0,65808.0,0.15164]
[1718624164002,1.02076022,65809.0,65808.0,0.15164]
[1718624164215,1.01576022,65809.0,65808.0,0.15164]
[1718624164419,1.31966922,65809.0,65808.0,0.15164]
[1718624164650,1.02376022,65809.0,65808.0,0.15164]
[1718624165478,1.25456922,65809.0,65808.0,0.15164]
[1718624166084,0.63875122,65809.0,65808.0,0.166804]
[1718624166219,0.17263671,65809.0,65808.0,0.166804]
[1718624166430,0.17763671,65809.0,65808.0,0.166804]
[1718624166641,0.17263671,65809.0,65808.0,0.166804]
[1718624167038,0.18063671,65809.0,65808.0,0.166804]
[1718624167246,0.33259071,65809.0,65808.0,0.15164]
[1718624167446,0.32459071,65809.0,65808.0,0.15164]
[1718624167646,0.32959071,65809.0,65808.0,0.15164]
[1718624167862,0.17763671,65809.0,65808.0,0.15164]
[1718624168479,0.32959071,65809.0,65808.0,0.15164]
[1718624170653,0.11749269,65809.0,65808.0,0.67898804]
[1718624170886,0.01749269,65809.0,65808.0,0.85407583]
[1718624171098,0.055,65809.0,65808.0,1.46190383]
[1718624171301,0.055,65809.0,65808.0,1.15798983]
[1718624172188,0.055,65809.0,65808.0,0.84432734]
[1718624172399,0.055,65809.0,65808.0,1.15798983]
[1718624172639,0.05,65815.0,65814.0,0.00974849]
[1718624172837,0.05,65815.0,65814.0,1.08945128]
[1718624173080,0.05,65822.0,65821.0,0.151927]
[1718624173296,0.05,65823.0,65822.0,0.91257049]
[1718624173526,0.05,65823.0,65822.0,0.925822]
[1718624173527,0.1,65823.0,65822.0,0.925822]
[1718624173744,0.1,65823.0,65822.0,0.63172149]
[1718624173957,0.1,65823.0,65822.0,0.32787249]
[1718624174166,0.1,65823.0,65822.0,0.38960104]
[1718624174377,0.05,65823.0,65822.0,1.14938683]
[1718624174579,0.05,65823.0,65822.0,0.84553783]
[1718624175170,0.05,65823.0,65822.0,0.83578934]
[1718624175373,0.05,65823.0,65822.0,0.84553783]
[1718624175759,0.061,65823.0,65822.0,0.84553783]
[1718624176173,0.061,65823.0,65822.0,1.14938683]
[1718624176375,0.061,65823.0,65822.0,0.84553783]
[1718624177109,0.05,65823.0,65822.0,0.84553783]
[1718624177305,0.12604389,65824.0,65823.0,0.76936049]
[1718624177513,0.12604389,65824.0,65823.0,1.00684405]
[1718624177722,0.07604389,65824.0,65823.0,1.05508684]
[1718624177972,0.07604389,65824.0,65823.0,1.35893184]
[1718624178424,0.07604389,65824.0,65823.0,1.05508684]
[1718624178647,0.07604389,65824.0,65823.0,1.35893184]
[1718624179049,0.05,65827.0,65826.0,0.00974849]
[1718624179261,0.05,65827.0,65826.0,0.78318228]
[1718624179501,0.07081126,65827.0,65826.0,1.08701328]
[1718624179713,0.05,65827.0,65826.0,1.08701328]
[1718624180347,0.051,65827.0,65826.0,1.09201328]
[1718624180589,0.051,65827.0,65826.0,1.09401328]
[1718624182857,0.001,65827.0,65826.0,1.39784428]
[1718624183546,0.051,65827.0,65826.0,1.39784428]
[1718624183780,0.051,65827.0,65826.0,1.09401328]
[1718624184875,0.051,65827.0,65826.0,1.08426479]
[1718624185305,0.051,65827.0,65826.0,1.09401328]
[1718624185514,0.051,65827.0,65826.0,1.08426479]
[1718624186338,0.051,65827.0,65826.0,1.09401328]
[1718624187378,0.001,65827.0,65826.0,1.39784428]
[1718624191163,0.07402908,65831.0,65830.0,0.91657849]
[1718624191370,0.07402908,65831.0,65830.0,1.09166628]
[1718624192531,0.07502908,65831.0,65830.0,1.09666628]
[1718624192739,0.07602908,65831.0,65830.0,1.09666628]
[1718624193594,0.07602908,65831.0,65830.0,1.16976628]
[1718624195163,0.07602908,65831.0,65830.0,1.47357828]
[1718624197287,0.002,65831.0,65830.0,1.47357828]
[1718624197500,0.002,65831.0,65830.0,1.59345513]
[1718624198174,0.001,65831.0,65830.0,1.58845513]
[1718624198595,0.002,65831.0,65830.0,1.59445513]
[1718624199014,0.002,65831.0,65830.0,1.59494229]
[1718624199601,0.001,65831.0,65830.0,1.59494229]
[1718624200049,0.002,65831.0,65830.0,1.59594229]
[1718624200443,0.002,65831.0,65830.0,1.91109979]
[1718624200662,0.002,65831.0,65830.0,1.59594229]
[1718624201824,0.002,65831.0,65830.0,1.91110631]
[1718624202022,0.002,65831.0,65830.0,1.59594229]
[1718624202226,0.002,65831.0,65830.0,1.94419847]
[1718624202951,0.002,65831.0,65830.0,1.91058888]
[1718624203150,0.002,65831.0,65830.0,1.94422218]
[1718624206260,0.002,65831.0,65830.0,2.28789016]
[1718624206434,0.002,65831.0,65830.0,1.96271201]
[1718624206619,0.002,65831.0,65830.0,2.20256799]
[1718624207242,0.002,65831.0,65830.0,2.50637999]
[1718624207648,0.002,65831.0,65830.0,2.60637999]
[1718624208508,0.001,65831.0,65830.0,2.60037999]
[1718624208909,0.002,65831.0,65830.0,2.61037999]
[1718624209313,0.002,65831.0,65830.0,2.29521694]
[1718624209517,0.001,65831.0,65830.0,2.60035133]
[1718624209932,0.001,65831.0,65830.0,2.60935133]
[1718624209933,0.002,65831.0,65830.0,2.60935133]
[1718624210184,0.001,65831.0,65830.0,2.60935133]
[1718624210335,0.002,65831.0,65830.0,2.61735133]
[1718624210806,0.001,65831.0,65830.0,2.30553933]
[1718624211017,0.001,65831.0,65830.0,2.26568335]
[1718624211467,0.002,65831.0,65830.0,2.27968335]
[1718624211747,0.002,65831.0,65830.0,2.2789557]
[1718624214438,0.002,65831.0,65830.0,2.32429135]
[1718624215286,0.002,65831.0,65830.0,2.2789557]
[1718624216954,0.002,65831.0,65830.0,2.34632443]
[1718624217778,0.002,65831.0,65830.0,2.27819185]
[1718624218607,0.002,65831.0,65830.0,2.36886315]
[1718624219574,0.002,65831.0,65830.0,2.27819185]
[1718624220300,0.002,65831.0,65830.0,2.36886315]
[1718624220910,0.002,65831.0,65830.0,2.27819185]
[1718624222186,0.002,65831.0,65830.0,2.39153098]
[1718624222599,0.002,65831.0,65830.0,2.27819185]
[1718624223210,0.002,65831.0,65830.0,2.39153098]
[1718624225096,0.002,65831.0,65830.0,2.39154803]
[1718624226126,0.002,65831.0,65830.0,2.39189505]
[1718624226923,0.002,65831.0,65830.0,2.43175103]
[1718624227146,0.002,65831.0,65830.0,2.3180441]
[1718624227358,0.002,65831.0,65830.0,2.46677473]
[1718624227564,0.002,65831.0,65830.0,2.31804175]
[1718624227993,0.002,65831.0,65830.0,2.46490644]
[1718624228465,0.002,65831.0,65830.0,2.98921443]
[1718624228750,0.002,65831.0,65830.0,2.85276611]
[1718624228956,0.002,65831.0,65830.0,3.15657811]
[1718624229202,0.002,65831.0,65830.0,2.85276611]
[1718624229426,0.001,65831.0,65830.0,2.84276611]
[1718624229641,0.001,65831.0,65830.0,3.14657811]
[1718624229853,0.00093501,65840.0,65839.0,1.45860247]
[1718624230047,0.00093501,65840.0,65839.0,2.33495559]
[1718624230260,0.00093501,65840.0,65839.0,2.35791663]
[1718624230465,0.00093501,65840.0,65839.0,2.70154361]
[1718624230889,0.00093501,65840.0,65839.0,2.78557641]
[1718624231316,0.00193501,65840.0,65839.0,2.79857641]
[1718624232158,0.00193501,65840.0,65839.0,2.73754361]
[1718624233017,0.00193501,65840.0,65839.0,2.82157158]
[1718624233231,0.00193501,65840.0,65839.0,2.73754361]
[1718624234119,0.00193501,65840.0,65839.0,2.359279]
[1718624234345,0.00193501,65840.0,65839.0,2.13728335]
[1718624234580,0.00193501,65840.0,65839.0,2.39720765]
[1718624234803,0.00193501,65840.0,65839.0,2.32410765]
[1718624235054,0.00193501,65840.0,65839.0,2.35735167]
[1718624235257,0.00193501,65840.0,65839.0,2.37135167]
[1718624235475,0.00193501,65840.0,65839.0,2.22798793]
[1718624235696,0.00193501,65840.0,65839.0,2.41471611]
[1718624236148,0.00193501,65840.0,65839.0,2.37486013]
[1718624236394,0.00193501,65840.0,65839.0,2.71848711]
[1718624236604,0.00193501,65840.0,65839.0,2.74888711]
[1718624237030,0.00193501,65840.0,65839.0,2.74884142]
[1718624237453,0.00193501,65840.0,65839.0,2.73584142]
[1718624237665,0.00093501,65840.0,65839.0,2.73584142]
[1718624237887,0.00193501,65840.0,65839.0,2.70998544]
[1718624238109,0.00093501,65840.0,65839.0,2.69598544]
[1718624238353,0.00093501,65840.0,65839.0,2.60888544]
[1718624238593,0.00093501,65840.0,65839.0,2.22368395]
[1718624238841,0.00093501,65840.0,65839.0,2.13278626]
[1718624239085,0.00093501,65840.0,65839.0,2.11878626]
[1718624239288,0.00093501,65840.0,65839.0,2.22368395]
[1718624239909,0.00093501,65840.0,65839.0,2.20533608]
[1718624240121,0.00093501,65840.0,65839.0,2.22499974]
[1718624240334,0.00093501,65840.0,65839.0,2.22499989]
[1718624240516,0.00093501,65840.0,65839.0,2.23899989]
[1718624241035,0.00093501,65840.0,65839.0,2.16589989]
[1718624241263,0.29561801,65840.0,65839.0,0.53356701]
[1718624241479,0.14373501,65840.0,65839.0,0.4999032]
[1718624241681,0.15657636,65840.0,65839.0,0.38008779]
[1718624241887,0.21672038,65840.0,65839.0,0.33197279]
[1718624242124,0.21672038,65840.0,65839.0,0.31797279]
[1718624242311,0.15657636,65840.0,65839.0,0.18410997]
[1718624242616,0.15657636,65840.0,65839.0,0.30529724]
[1718624242752,0.15657636,65840.0,65839.0,0.29129724]
[1718624242963,0.15657636,65840.0,65839.0,0.34499497]
[1718624243163,0.15657636,65840.0,65839.0,0.36999497]
[1718624243385,0.15657636,65840.0,65839.0,0.37974346]
[1718624243560,0.15657636,65840.0,65839.0,0.48864478]
[1718624244647,0.15657636,65840.0,65839.0,0.33675978]
[1718624244852,0.15657636,65840.0,65839.0,0.31375978]
[1718624245051,0.15657636,65840.0,65839.0,0.33675978]
[1718624246936,0.21672038,65840.0,65839.0,0.21810997]
[1718624247342,0.15657636,65840.0,65839.0,0.21810997]
[1718624248207,0.15657636,65840.0,65839.0,0.33635835]
[1718624249087,0.15657636,65840.0,65839.0,0.21810997]
[1718624250071,0.15657636,65840.0,65839.0,0.33601213]
[1718624250277,0.21672038,65840.0,65839.0,0.33601213]
[1718624250478,0.21672038,65840.0,65839.0,0.21810997]
[1718624250859,0.15657636,65840.0,65839.0,0.21810997]
[1718624252492,0.15657636,65840.0,65839.0,0.30513737]
[1718624252697,0.21672038,65840.0,65839.0,0.30513737]
[1718624253504,0.15657636,65840.0,65839.0,0.42209061]
[1718624253707,0.15657636,65840.0,65839.0,0.8874951]
[1718624254322,0.15657636,65840.0,65839.0,0.5837241]
[1718624254940,0.15657636,65840.0,65839.0,1.4950371]
[1718624255135,0.15657636,65840.0,65839.0,1.54052261]
[1718624255369,0.14373501,65840.0,65839.0,1.54052261]
[1718624255512,0.14373501,65840.0,65839.0,1.1912661]
[1718624255879,0.14373501,65840.0,65839.0,1.07431286]
[1718624256086,0.14373501,65840.0,65839.0,1.18980484]
[1718624260504,0.14373501,65840.0,65839.0,0.87628535]
[1718624261317,0.20387903,65840.0,65839.0,0.87628535]
[1718624261489,0.35576203,65840.0,65839.0,0.33360195]
[1718624261756,0.78259273,65840.0,65839.0,0.14049198]
[1718624261968,1.08635873,65840.0,65839.0,0.025]
[1718624262390,1.46322473,65840.0,65839.0,0.025]
[1718624262771,1.46322473,65840.0,65839.0,0.011]
[1718624262971,0.1408,65833.0,65830.0,0.00085]
[1718624263181,0.06014402,65832.0,65831.0,0.32646342]
[1718624263399,0.66941937,65832.0,65831.0,0.32646342]
[1718624263615,0.66941937,65832.0,65831.0,0.34946342]
[1718624263824,0.97322237,65832.0,65831.0,0.34946342]
[1718624264248,1.33727688,65832.0,65831.0,0.17593779]
[1718624264889,1.77417988,65832.0,65831.0,0.00085]
[1718624265744,1.69107988,65832.0,65831.0,0.00085]
[1718624265956,1.77417988,65832.0,65831.0,0.01485]
[1718624266367,1.77417988,65832.0,65831.0,0.02785]
[1718624266832,1.77417988,65832.0,65831.0,0.01485]
[1718624267036,1.77417988,65832.0,65831.0,0.00485]
[1718624268520,1.77417988,65832.0,65831.0,0.01485]
[1718624268660,1.76417988,65832.0,65831.0,0.01485]
[1718624272039,1.69107988,65832.0,65831.0,0.01485]
[1718624272235,1.46037688,65832.0,65831.0,0.01485]
[1718624274570,1.76417988,65832.0,65831.0,0.01485]
[1718624275330,1.46037688,65832.0,65831.0,0.01485]
[1718624276118,1.47037688,65832.0,65831.0,0.01485]
[1718624276369,1.46037688,65832.0,65831.0,0.01485]
[1718624277096,1.47037688,65832.0,65831.0,0.01485]
[1718624278629,1.46037688,65832.0,65831.0,0.01485]
[1718624280690,1.38727688,65832.0,65831.0,0.01485]
[1718624280908,1.46037688,65832.0,65831.0,0.01485]
[1718624282718,1.38727688,65832.0,65831.0,0.01485]
[1718624282928,1.46037688,65832.0,65831.0,0.01485]
[1718624288126,1.38727688,65832.0,65831.0,0.01485]
[1718624288352,1.46037688,65832.0,65831.0,0.01485]
[1718624290674,0.76941937,65832.0,65831.0,0.01485]
[1718624290875,1.08347388,65832.0,65831.0,0.01485]
[1718624291282,1.38727688,65832.0,65831.0,0.01485]
[1718624291659,1.08347388,65832.0,65831.0,0.01485]
[1718624293455,1.38727688,65832.0,65831.0,0.01485]
[1718624294692,1.08347388,65832.0,65831.0,0.01485]
[1718624295944,1.08440889,65832.0,65831.0,0.01485]
[1718624296153,1.09050895,65832.0,65831.0,0.01485]
[1718624297012,1.39431195,65832.0,65831.0,0.01485]
[1718624297436,1.09050895,65832.0,65831.0,0.01485]
[1718624301892,1.08477323,65832.0,65831.0,0.01485]
[1718624302294,1.02017323,65832.0,65831.0,0.01485]
[1718624302723,1.02017323,65832.0,65831.0,0.02437]
[1718624303258,0.64017023,65832.0,65831.0,0.02437]
[1718624303458,0.94397323,65832.0,65831.0,0.01485]
[1718624305609,0.94132506,65832.0,65831.0,0.01485]
[1718624306016,0.9270971,65832.0,65831.0,0.01485]
[1718624306779,0.11009425,65832.0,65831.0,0.01485]
[1718624306987,0.11009425,65832.0,65831.0,0.02470485]
[1718624309481,0.11009425,65832.0,65831.0,0.17660885]
[1718624309681,0.11009425,65832.0,65831.0,0.02470485]
[1718624309883,0.11009425,65832.0,65831.0,0.04770485]
[1718624309992,0.11009425,65832.0,65831.0,0.33690885]
[1718624310204,0.01009425,65832.0,65831.0,0.80255313]
[1718624310615,0.00093501,65832.0,65831.0,1.10636113]
[1718624310854,0.00093501,65832.0,65831.0,1.26390156]
[1718624311266,0.00093501,65832.0,65831.0,1.21838034]
[1718624311887,0.00093501,65832.0,65831.0,1.26390156]
[1718624312335,0.00093501,65832.0,65831.0,1.46390156]
[1718624312539,0.00093501,65832.0,65831.0,1.50946202]
[1718624312756,0.00093501,65832.0,65831.0,1.49946202]
[1718624312963,0.00093501,65832.0,65831.0,1.49546202]
[1718624313173,0.00093501,65832.0,65831.0,1.50844025]
[1718624313393,0.00093501,65832.0,65831.0,1.46287979]
[1718624313601,0.00093501,65832.0,65831.0,1.53597979]
[1718624314237,0.00093501,65832.0,65831.0,1.54997979]
[1718624314441,0.00093501,65832.0,65831.0,1.53697979]
[1718624314667,0.00093501,65832.0,65831.0,1.52297979]
[1718624314876,0.00093501,65832.0,65831.0,1.53697979]
[1718624315173,0.00093501,65832.0,65831.0,1.55097979]
[1718624315596,0.00093501,65832.0,65831.0,1.85478779]
[1718624315827,0.00093501,65832.0,65831.0,1.55097979]
[1718624316221,0.00093501,65832.0,65831.0,1.53697979]
[1718624316594,0.00093501,65832.0,65831.0,1.50548034]
[1718624319266,0.00093501,65832.0,65831.0,1.43238034]
[1718624319476,0.00093501,65832.0,65831.0,1.50548034]
[1718624319682,0.00093501,65832.0,65831.0,1.42263185]
[1718624319923,0.00093501,65832.0,65831.0,1.49573185]
[1718624320126,0.00093501,65832.0,65831.0,1.11882385]
[1718624320349,0.05843086,65832.0,65831.0,0.21379264]
[1718624320568,0.21033186,65832.0,65831.0,0.21379264]
[1718624321248,0.05843086,65832.0,65831.0,0.21379264]
[1718624321872,0.00093501,65832.0,65831.0,0.36569664]
[1718624322272,0.00093501,65832.0,65831.0,0.56486827]
[1718624323719,0.05843086,65832.0,65831.0,0.56486827]
[1718624323939,0.05843086,65832.0,65831.0,0.56486673]
[1718624324575,0.05843086,65832.0,65831.0,0.41296273]
[1718624324986,0.87818937,65832.0,65831.0,0.15492009]
[1718624325228,1.44579237,65832.0,65831.0,0.02885]
[1718624325909,1.37269237,65832.0,65831.0,0.01485]
[1718624326324,1.37269237,65832.0,65831.0,0.00085]
[1718624326742,1.05863786,65832.0,65831.0,0.00185]
[1718624326949,1.06888937,65832.0,65831.0,0.00185]
[1718624327150,1.05863786,65832.0,65831.0,0.00185]
[1718624327356,1.06888937,65832.0,65831.0,0.00185]
[1718624327554,1.06888937,65832.0,65831.0,0.01185]
[1718624327763,1.00863786,65832.0,65831.0,0.01185]
[1718624327982,1.05863786,65832.0,65831.0,0.00185]
[1718624328420,1.06888937,65832.0,65831.0,0.00185]
[1718624328833,1.06888937,65832.0,65831.0,0.00985]
[1718624331752,1.05863786,65832.0,65831.0,0.00985]
[1718624334107,1.06888937,65832.0,65831.0,0.00985]
[1718624336347,1.01888937,65832.0,65831.0,0.00985]
[1718624336567,1.06888937,65832.0,65831.0,0.00985]
[1718624336986,1.05863786,65832.0,65831.0,0.00985]
[1718624337199,1.06888937,65832.0,65831.0,0.00985]
[1718624344430,1.01888937,65832.0,65831.0,0.00985]
[1718624344635,1.06888937,65832.0,65831.0,0.00985]
[1718624344837,1.05863786,65832.0,65831.0,0.00985]
[1718624345043,0.69193486,65832.0,65831.0,0.00985]
[1718624345246,0.61413486,65832.0,65831.0,0.00985]
[1718624345472,0.91793786,65832.0,65831.0,0.00985]
[1718624348722,0.10093501,65832.0,65831.0,0.00985]
[1718624348937,0.25283601,65832.0,65831.0,0.00985]
[1718624349147,0.31033186,65832.0,65831.0,0.0638036]
[1718624349778,0.91793786,65832.0,65831.0,0.0638036]
[1718624349982,0.92818937,65832.0,65831.0,0.00985]
[1718624350232,0.91793786,65832.0,65831.0,0.00985]
[1718624350446,0.92818937,65832.0,65831.0,0.00985]
[1718624353130,1.23199237,65832.0,65831.0,0.00985]
[1718624353355,1.76189537,65832.0,65831.0,0.00985]
[1718624353816,1.75189537,65832.0,65831.0,0.00985]
[1718624354292,1.75189537,65832.0,65831.0,0.00185]
[1718624354522,1.75189537,65832.0,65831.0,0.00085]
[1718624354763,1.67879537,65832.0,65831.0,0.00085]
[1718624354998,1.67979537,65832.0,65831.0,0.00085]
[1718624355637,1.67979537,65832.0,65831.0,0.00585]
[1718624359018,1.68979537,65832.0,65831.0,0.00585]
[1718624360083,1.67979537,65832.0,65831.0,0.00585]
[1718624361578,1.6797449,65832.0,65831.0,0.00585]
[1718624366516,1.36569039,65832.0,65831.0,0.00585]
[1718624366757,1.3759419,65832.0,65831.0,0.00585]
[1718624368561,1.3121419,65832.0,65831.0,0.00585]
[1718624370473,1.2329419,65832.0,65831.0,0.00585]
[1718624371231,0.25378554,65832.0,65831.0,0.00585]
[1718624371410,0.61508439,65832.0,65831.0,0.15305]
[1718624371611,0.9291389,65832.0,65831.0,0.16844]
[1718624373247,0.9291389,65832.0,65831.0,0.02124]
[1718624373504,1.2329419,65832.0,65831.0,0.02124]
[1718624373722,1.2329419,65832.0,65831.0,0.00585]
[1718624387240,1.2429419,65832.0,65831.0,0.00585]
[1718624387648,1.3185419,65832.0,65831.0,0.00585]
[1718624388315,1.3085419,65832.0,65831.0,0.00585]
[1718624388739,1.9873479,65832.0,65831.0,0.00585]
[1718624388960,1.6835449,65832.0,65831.0,0.00585]
[1718624389172,1.6735449,65832.0,65831.0,0.00585]
[1718624390019,1.6735449,65832.0,65831.0,0.00085]
[1718624390237,1.6835449,65832.0,65831.0,0.00085]
[1718624390448,1.6725449,65832.0,65831.0,0.00085]
[1718624390673,1.6825449,65832.0,65831.0,0.00085]
[1718624390878,1.6845449,65832.0,65831.0,0.00185]
[1718624391726,1.6745449,65832.0,65831.0,0.00185]
[1718624391933,1.6845449,65832.0,65831.0,0.00185]
[1718624392552,1.7576449,65832.0,65831.0,0.00185]
[1718624392973,1.6845449,65832.0,65831.0,0.00185]
[1718624393180,1.7576449,65832.0,65831.0,0.00185]
[1718624393384,1.7476449,65832.0,65831.0,0.00185]
[1718624395438,1.7576449,65832.0,65831.0,0.00185]
[1718624396267,1.7476449,65832.0,65831.0,0.00185]
[1718624396853,1.6745449,65832.0,65831.0,0.00185]
[1718624397054,1.7476449,65832.0,65831.0,0.00185]
[1718624400607,1.4438419,65832.0,65831.0,0.00185]
[1718624401091,1.29679039,65832.0,65831.0,0.00185]
[1718624401280,0.9301389,65832.0,65831.0,0.00185]
[1718624401420,0.9301389,65832.0,65831.0,0.01625]
[1718624402035,1.2339419,65832.0,65831.0,0.01625]
[1718624404880,1.3130419,65832.0,65831.0,0.01625]
[1718624405104,0.455752,65825.0,65824.0,0.08703341]
[1718624405314,0.455752,65825.0,65824.0,0.11003341]
[1718624405315,0.51324785,65825.0,65824.0,0.11003341]
[1718624405511,0.62349936,65825.0,65824.0,0.11003341]
[1718624405955,0.62349936,65825.0,65824.0,0.1028]
[1718624406159,0.92733436,65825.0,65824.0,0.023]
[1718624406357,0.57350736,65824.0,65823.0,0.00085]
[1718624406557,0.57350736,65824.0,65823.0,0.15293779]
[1718624406804,0.57350736,65824.0,65823.0,0.17593779]
[1718624406950,0.92734736,65824.0,65823.0,0.17593779]
[1718624407552,1.38168736,65824.0,65823.0,0.00085]
[1718624407753,1.37168736,65824.0,65823.0,0.00085]
[1718624408336,1.37168736,65824.0,65823.0,0.00385]
[1718624408763,1.37168736,65824.0,65823.0,0.01285]
[1718624409628,1.38168736,65824.0,65823.0,0.01285]
[1718624409848,1.68552736,65824.0,65823.0,0.00385]
[1718624410298,1.68552736,65824.0,65823.0,0.00585]
[1718624410299,1.78884167,65824.0,65823.0,0.00585]
[1718624410507,1.74339437,65824.0,65823.0,0.00585]
[1718624410985,1.74439437,65824.0,65823.0,0.00585]
[1718624411424,1.37268736,65824.0,65823.0,0.00585]
[1718624411624,1.38268736,65824.0,65823.0,0.00585]
[1718624411838,1.37268736,65824.0,65823.0,0.00585]
[1718624412920,1.44578736,65824.0,65823.0,0.00585]
[1718624413359,1.49423863,65824.0,65823.0,0.00585]
[1718624415364,1.42119425,65824.0,65823.0,0.00585]
[1718624415562,1.49429425,65824.0,65823.0,0.00585]
[1718624418613,1.50429425,65824.0,65823.0,0.00585]
[1718624421965,1.49429425,65824.0,65823.0,0.00585]
[1718624422493,1.80813425,65824.0,65823.0,0.00585]
[1718624422904,1.75962736,65824.0,65823.0,0.00585]
[1718624424712,2.47328182,65824.0,65823.0,0.00585]
[1718624424933,2.36659037,65824.0,65823.0,0.00585]
[1718624425138,2.51867816,65824.0,65823.0,0.00585]
[1718624425322,2.56867816,65824.0,65823.0,0.00585]
[1718624425526,2.56867816,65824.0,65823.0,0.00085]